bitfinex/quotes_ETHUSD_20251031
["timestamp","ask_amount","ask_price","bid_price","bid_amount"]
[1761916695417,0.1288,3859.4,3858.3,1.81427053]
[1761916695619,0.4539,3859.5,3858.4,1.81422351]
[1761916695856,0.4874,3859.6,3859.1,1.81389215]
[1761916696060,0.4874,3859.6,3859.2,1.81382628]
[1761916696358,0.4874,3859.6,3858.4,1.81418169]
[1761916696560,0.00020001,3859.7,3859.5,1.81369628]
[1761916696766,0.00020001,3859.7,3859.5,1.81366951]
[1761916696915,0.00020001,3859.7,3859.6,1.81365944]
[1761916699984,0.46270001,3859.7,3858.5,0.18141817]
[1761916700163,0.4625,3859.5,3859.4,1.81370679]
[1761916700823,0.4625,3859.5,3858.6,1.81412947]
[1761916701143,0.4625,3859.5,3858.7,0.33952276]
[1761916701347,0.4625,3859.5,3859.4,1.81375343]
[1761916701639,0.86230401,3859.7,3859.6,1.81365944]
[1761916701974,0.86230401,3859.7,3859.3,0.02591143]
[1761916702120,0.40570401,3859.7,3859.3,0.02591143]
[1761916702329,0.00020001,3859.7,3859.6,1.81365944]
[1761916702946,0.45050001,3859.7,3859.5,1.81367071]
[1761916703453,0.4503,3859.6,3859.5,1.81367071]
[1761916704821,0.00020001,3859.7,3859.6,1.81365944]
[1761916705022,0.00020001,3859.7,3859.6,1.83956886]
[1761916706845,0.00020001,3859.7,3859.6,1.81365944]
[1761916707093,0.94880001,3859.7,3859.6,1.81365944]
[1761916707395,0.45050001,3859.7,3859.6,1.81365944]
[1761916707600,0.45050001,3859.7,3859.6,1.81565944]
[1761916708583,0.00020001,3859.7,3859.6,1.81565944]
[1761916709384,0.00020001,3859.7,3859.6,2.1811912]
[1761916717614,0.45050001,3859.7,3859.6,1.81565944]
[1761916718180,0.94880001,3859.7,3859.6,1.81565944]
[1761916718578,0.94880001,3859.7,3859.6,0.002]
[1761916719330,0.94880001,3859.7,3859.6,1.81565944]
[1761916719913,0.94800001,3859.7,3859.6,1.81565944]
[1761916720475,0.94800001,3859.7,3859.6,0.002]
[1761916720896,1.35350401,3859.7,3859.6,0.002]
[1761916721107,1.50864441,3859.7,3859.6,0.002]
[1761916721994,0.44970001,3859.7,3859.6,0.002]
[1761916722195,1.35350401,3859.7,3859.6,0.002]
[1761916724602,7.712104,3859.7,3859.6,0.002]
[1761916725218,10.465704,3859.7,3859.6,0.002]
[1761916725964,11.865384,3859.7,3859.6,0.002]
[1761916726277,15.06667237,3859.7,3859.6,0.002]
[1761916727323,12.31307237,3859.7,3859.6,0.002]
[1761916727523,22.47316737,3859.7,3859.6,0.002]
[1761916727834,19.60713237,3859.7,3859.6,0.002]
[1761916728551,22.18704537,3859.7,3859.6,0.002]
[1761916729676,1.81380043,3859.3,3859.2,0.002]
[1761916729821,2.21949244,3858.9,3858.8,0.002]
[1761916730024,2.21949244,3858.9,3857.3,0.002]
[1761916730025,0.405504,3858.4,3857.5,1.81464421]
[1761916730329,1.81407981,3858.8,3857.7,1.8165519]
[1761916730330,0.887104,3858.2,3857.7,1.8165519]
[1761916730536,0.887104,3858.2,3857.7,1.81655151]
[1761916730733,1.349904,3858.2,3857.7,0.002]
[1761916731325,0.405504,3858.1,3857.7,0.002]
[1761916731622,6.779216,3857.8,3857.7,0.002]
[1761916732020,7.242016,3857.8,3857.7,0.002]
[1761916732256,9.05652167,3857.8,3857.7,0.002]
[1761916732457,10.02060667,3857.8,3857.7,0.002]
[1761916732760,11.09187079,3857.8,3857.7,0.002]
[1761916733361,4.00214812,3857.8,3857.7,0.002]
[1761916733563,2.930884,3857.8,3857.7,0.002]
[1761916735468,0.40672506,3858.3,3857.7,0.6551]
[1761916735684,0.006,3859.7,3858.2,2.30070617]
[1761916735830,0.006,3859.7,3858.8,0.4864]
[1761916736263,0.4688,3859.7,3859.3,1.81379286]
[1761916736430,0.4816,3859.4,3859.3,1.81379286]
[1761916738836,0.4816,3859.4,3858.5,0.4701]
[1761916739037,0.006,3859.7,3858.6,0.32181716]
[1761916739234,0.405504,3859.6,3859.1,1.81389132]
[1761916739438,0.405504,3859.6,3859.1,1.81389321]
[1761916739771,0.405504,3859.5,3859.1,1.81389321]
[1761916740359,0.405504,3859.4,3859.1,1.81389321]
[1761916740686,0.1288,3859.1,3859.0,1.81393988]
[1761916740886,0.1288,3859.1,3858.6,1.81409502]
[1761916740887,0.1288,3859.0,3858.8,1.81400167]
[1761916741095,0.006,3859.7,3859.3,0.4864]
[1761916741266,1e-08,3859.7,3859.6,10.17830457]
[1761916741454,0.001,3860.1,3860.0,1.8134715]
[1761916741654,0.001,3860.1,3860.0,2.32577823]
[1761916741993,0.001,3860.1,3860.0,3.25682033]
[1761916742490,0.005,3860.7,3860.4,1.81328359]
[1761916742690,0.1298,3860.5,3860.4,8.80415277]
[1761916742855,0.005,3860.7,3860.6,1.81318965]
[1761916743051,0.005,3860.7,3860.6,2.32549235]
[1761916743272,0.005,3860.7,3860.6,4.10398334]
[1761916745087,0.0042,3860.7,3860.6,4.10398334]
[1761916746094,0.0042,3860.7,3860.6,4.07808064]
[1761916747472,0.0042,3860.7,3860.6,2.29958965]
[1761916749892,0.0042,3860.7,3860.6,2.79559235]
[1761916751209,0.0042,3860.7,3860.6,2.29958965]
[1761916753307,0.0042,3860.7,3860.6,2.76968965]
[1761916753605,0.0042,3860.7,3860.6,2.29958965]
[1761916753810,0.0042,3860.7,3860.6,2.71087697]
[1761916754880,0.0042,3860.7,3860.6,3.18097697]
[1761916755091,0.0042,3860.7,3860.6,3.30977697]
[1761916755689,0.133,3860.7,3860.6,3.20687967]
[1761916755889,0.133,3860.7,3860.6,3.18097697]
[1761916756299,0.133,3860.7,3860.6,2.71087697]
[1761916756616,0.133,3860.7,3860.6,2.22447697]
[1761916756979,0.6146,3860.7,3860.6,1.81318965]
[1761916757181,0.133,3860.7,3860.6,2.29958965]
[1761916757617,0.6146,3860.7,3860.6,1.81318965]
[1761916757816,0.133,3860.7,3860.6,1.81318965]
[1761916758013,0.133,3860.7,3860.1,0.1692]
[1761916758314,0.0042,3860.7,3860.6,1.81318965]
[1761916759037,0.0042,3860.7,3860.6,1.81518965]
[1761916759214,0.0052,3860.7,3860.6,1.81518965]
[1761916759584,0.4868,3860.7,3860.6,1.81518965]
[1761916760411,0.0052,3860.7,3860.6,1.81518965]
[1761916761917,0.0052,3860.7,3860.6,1.84109235]
[1761916762307,0.0052,3860.7,3860.6,2.63142466]
[1761916762615,0.0052,3860.7,3860.6,3.13152736]
[1761916763204,0.001,3861.1,3860.8,1.81306922]
[1761916763539,0.001,3861.1,3861.0,2.30340181]
[1761916764039,0.001,3861.1,3861.0,2.75980181]
[1761916764203,0.001,3861.1,3861.0,3.86494543]
[1761916764551,0.001,3861.1,3861.0,3.89084545]
[1761916765041,0.001,3861.1,3861.0,3.86494543]
[1761916765640,0.001,3861.1,3861.0,3.40854543]
[1761916765942,0.001,3861.1,3861.0,2.30340181]
[1761916766808,0.001,3861.1,3861.0,2.75980181]
[1761916767055,0.001,3861.1,3861.0,2.78570183]
[1761916768412,0.001,3861.1,3861.0,2.32930183]
[1761916768631,0.001,3861.1,3861.0,2.30340181]
[1761916769052,0.001,3861.1,3861.0,2.71504891]
[1761916770162,3.23445448,3865.2,3862.6,1.81225081]
[1761916770163,1.09114699,3863.3,3862.6,1.81225081]
[1761916770373,1e-08,3862.7,3862.6,10.20678523]
[1761916770672,0.4579,3864.6,3863.6,1.81178175]
[1761916770885,0.4579,3864.6,3863.6,11.16504102]
[1761916771091,1e-08,3863.7,3863.6,11.13915843]
[1761916771232,1e-08,3863.7,3863.6,12.42915843]
[1761916774472,1e-08,3863.7,3863.6,12.62615843]
[1761916774835,1e-08,3863.7,3863.6,11.33615843]
[1761916776171,1e-08,3863.7,3863.6,10.87975843]
[1761916776748,1e-08,3863.7,3863.6,11.13915843]
[1761916777154,1e-08,3863.7,3863.6,4.2041933]
[1761916777354,0.00100001,3863.7,3863.6,4.2041933]
[1761916778554,0.00100001,3863.7,3863.6,4.23007589]
[1761916779275,0.00100001,3863.7,3863.6,4.2041933]
[1761916779640,0.00100001,3863.7,3863.6,4.23007589]
[1761916780206,1e-08,3864.7,3864.6,2.47711294]
[1761916780362,1e-08,3864.7,3864.6,10.66564814]
[1761916780674,1e-08,3864.7,3864.6,11.42197225]
[1761916781180,1e-08,3865.3,3865.2,1.81103177]
[1761916781399,1e-08,3865.3,3865.2,8.71303334]
[1761916781678,1e-08,3865.3,3865.2,10.08684146]
[1761916781982,1e-08,3865.3,3865.2,11.74591586]
[1761916783175,1e-08,3865.3,3865.2,4.41338617]
[1761916783342,1e-08,3865.3,3865.2,3.21071177]
[1761916784045,0.58790001,3865.3,3865.2,3.21071177]
[1761916784939,1e-08,3865.3,3865.2,3.23658365]
[1761916785478,1e-08,3865.3,3865.2,3.72698365]
[1761916785866,1e-08,3865.3,3865.2,3.70111177]
[1761916786175,1e-08,3865.3,3865.2,4.2652132]
[1761916787040,0.91700001,3865.3,3865.2,3.7748132]
[1761916787274,0.45910001,3865.3,3865.2,3.21071177]
[1761916788043,1e-08,3865.3,3865.2,3.21071177]
[1761916788540,0.45910001,3865.3,3865.2,3.21071177]
[1761916788768,0.91700001,3865.3,3865.2,3.21071177]
[1761916789126,1e-08,3865.3,3865.2,3.21071177]
[1761916789257,1e-08,3865.3,3865.2,3.7128932]
[1761916789751,0.45910001,3865.3,3865.2,3.7128932]
[1761916790562,0.95550001,3865.3,3865.2,3.7128932]
[1761916791681,0.94269405,3865.3,3865.2,3.7128932]
[1761916791983,0.44629405,3865.3,3865.2,3.7128932]
[1761916794359,0.94269405,3865.3,3865.2,3.7128932]
[1761916794560,0.44629405,3865.3,3865.2,3.7128932]
[1761916794769,0.44729405,3865.3,3865.2,3.7128932]
[1761916795489,0.44649405,3865.3,3865.2,3.73876508]
[1761916795788,0.94289405,3865.3,3865.2,3.73876508]
[1761916796095,0.44649405,3865.3,3865.2,3.73876508]
[1761916796459,0.001,3865.3,3865.2,3.73876508]
[1761916796856,0.4725,3865.3,3865.2,3.7128932]
[1761916798752,0.4725,3865.3,3865.2,3.73876508]
[1761916799492,0.001,3865.3,3865.2,3.73876508]
[1761916799862,0.9689,3865.3,3865.2,3.7128932]
[1761916800077,0.9689,3865.3,3865.2,3.21071177]
[1761916800496,0.9689,3865.3,3865.1,0.002]
[1761916800713,0.4669,3864.9,3863.8,0.77784187]
[1761916800919,0.870004,3864.5,3864.1,1.81153766]
[1761916801292,1.366404,3864.5,3864.1,1.81152308]
[1761916802805,1.366404,3864.5,3863.9,1.81161674]
[1761916803007,1.366404,3864.5,3864.0,1.81159419]
[1761916803208,1.366404,3864.5,3863.9,1.81163911]
[1761916803209,1.5030444,3864.5,3863.9,1.81163911]
[1761916803712,1.5030444,3864.5,3863.7,1.81171908]
[1761916803917,1.5030444,3864.5,3863.1,0.005]
[1761916804116,1.5030444,3864.5,3863.7,1.81168825]
[1761916804726,1.5030444,3864.5,3863.8,1.81167261]
[1761916805716,1.5030444,3864.5,3863.9,1.81159519]
[1761916805921,0.001,3865.3,3864.4,0.4651]
[1761916806127,0.001,3865.3,3865.2,2.45853177]
[1761916806420,0.001,3865.3,3865.2,1.81103177]
[1761916806716,0.9689,3865.3,3865.2,1.81103177]
[1761916806915,0.4725,3865.3,3865.2,1.81103177]
[1761916807082,0.001,3865.3,3865.2,1.81103177]
[1761916807282,0.001,3865.3,3865.2,2.77890167]
[1761916807488,0.001,3865.3,3865.2,4.17858167]
[1761916807701,0.001,3865.3,3865.2,4.67248167]
[1761916808116,0.001,3865.3,3865.2,4.17858167]
[1761916809818,0.001,3865.3,3865.2,4.67248167]
[1761916811323,1e-08,3865.7,3865.6,2.27394437]
[1761916811524,1e-08,3865.7,3865.6,11.43526349]
[1761916811742,1e-08,3865.7,3865.6,11.40939429]
[1761916812330,0.005,3866.7,3866.6,10.00728573]
[1761916812331,1e-08,3866.7,3866.6,10.00728573]
[1761916812532,1e-08,3866.7,3866.6,10.13608573]
[1761916812717,1e-08,3866.7,3866.6,11.82463899]
[1761916813313,1e-08,3866.7,3866.6,11.69583899]
[1761916814134,1e-08,3866.7,3866.6,4.8678093]
[1761916814337,1e-08,3866.7,3866.6,3.67315604]
[1761916814925,1e-08,3866.7,3866.6,4.19291855]
[1761916815122,1e-08,3866.7,3866.6,4.16705604]
[1761916815473,1e-08,3866.7,3866.6,4.19291855]
[1761916816212,1e-08,3866.7,3866.6,3.67315604]
[1761916816417,1e-08,3866.7,3866.6,4.22151633]
[1761916816617,1e-08,3866.7,3866.6,4.71541633]
[1761916817235,1e-08,3866.7,3866.6,4.22151633]
[1761916818219,1e-08,3866.7,3866.6,4.71541633]
[1761916819486,1e-08,3866.7,3866.6,4.74127884]
[1761916819668,1e-08,3866.7,3866.6,4.22151633]
[1761916819874,1e-08,3866.7,3866.6,4.71541633]
[1761916820691,0.00420001,3867.7,3866.6,1.50536029]
[1761916820890,0.00420001,3867.7,3866.7,0.36002888]
[1761916821383,0.47510001,3867.7,3867.2,1.81007956]
[1761916821559,0.405504,3867.6,3867.2,1.8100941]
[1761916821894,0.4931,3867.3,3867.2,1.81009515]
[1761916822095,0.4931,3867.3,3866.7,0.33416704]
[1761916822293,0.4709,3867.2,3866.9,1.81023558]
[1761916822595,0.4709,3867.2,3867.1,1.81011468]
[1761916823018,0.964,3867.2,3867.1,1.81011468]
[1761916823685,0.1288,3867.1,3865.4,6.33412969]
[1761916823982,0.1288,3866.5,3866.4,1.81046968]
[1761916824457,1.2745,3866.5,3865.7,0.71130699]
[1761916824659,0.655,3866.5,3866.3,1.81051406]
[1761916824879,0.4709,3866.4,3866.3,1.81051406]
[1761916825066,0.964,3866.4,3866.3,1.81051406]
[1761916825478,0.4709,3867.2,3865.8,0.02586786]
[1761916825691,0.1841,3867.0,3866.3,0.4962]
[1761916825988,0.4931,3866.4,3866.3,1.81051651]
[1761916826467,0.1841,3867.0,3865.8,0.4785]
[1761916826662,0.1841,3867.0,3865.4,6.33412969]
[1761916826663,0.4709,3866.9,3865.9,0.187818]
[1761916826895,0.4709,3866.9,3865.5,3.21052622]
[1761916827100,0.4709,3866.9,3866.2,1.81055925]
[1761916827302,0.4709,3866.9,3866.1,1.81059383]
[1761916827503,0.405504,3866.8,3864.9,0.4785]
[1761916827802,0.4709,3866.7,3865.3,1.81098491]
[1761916828102,0.4709,3866.7,3865.9,1.81067231]
[1761916828264,0.4709,3866.7,3866.0,1.81065398]
[1761916828466,0.4709,3866.7,3866.1,1.81060793]
[1761916828992,0.4931,3866.2,3866.1,1.81060793]
[1761916829477,0.964,3866.2,3866.1,1.81060793]
[1761916830178,0.964,3866.2,3865.1,0.1873]
[1761916830376,0.655,3866.1,3865.2,1.81103177]
[1761916830585,0.655,3866.1,3865.3,0.36271498]
[1761916830785,0.4709,3866.0,3865.4,0.02587054]
[1761916831302,0.4709,3866.0,3865.9,1.81070384]
[1761916831679,0.1841,3866.1,3866.0,1.810657]
[1761916831884,1.1481,3866.1,3866.0,1.810657]
[1761916833610,0.1841,3866.4,3866.2,1.81053535]
[1761916833974,0.964,3866.3,3866.2,1.81053535]
[1761916835681,0.1288,3866.2,3866.0,1.8106104]
[1761916836011,0.2589,3866.1,3866.0,1.8106104]
[1761916836407,0.1288,3866.0,3865.5,0.002]
[1761916836578,0.4908,3865.8,3865.7,1.81079752]
[1761916836919,0.1288,3866.0,3865.9,1.81070384]
[1761916837412,0.6219,3866.0,3865.9,1.81070384]
[1761916838245,0.1288,3866.0,3865.9,1.81070384]
[1761916838535,0.1288,3866.0,3865.9,1.83657103]
[1761916839501,0.1288,3866.0,3865.9,1.81070384]
[1761916840295,0.1288,3866.0,3865.9,1.83657103]
[1761916843134,0.1288,3866.2,3866.1,1.81060617]
[1761916843307,0.1288,3866.2,3866.1,1.83647202]
[1761916843496,0.1288,3866.2,3866.1,2.33267202]
[1761916844198,0.1288,3866.2,3866.1,2.81117202]
[1761916844398,0.1288,3866.2,3866.1,3.31345428]
[1761916844596,0.1288,3866.2,3866.1,2.83495428]
[1761916845623,0.1288,3866.2,3866.1,2.33875428]
[1761916845829,0.128,3866.2,3866.1,2.31288843]
[1761916846423,0.128,3866.2,3866.1,2.80908843]
[1761916849463,0.47610001,3867.7,3866.2,1.81056334]
[1761916849628,0.47610001,3867.7,3867.3,1.81004261]
[1761916849832,0.47610001,3867.7,3866.4,1.81046968]
[1761916849833,0.47610001,3867.7,3867.2,1.81008343]
[1761916850044,0.47610001,3867.7,3867.2,1.81008626]
[1761916850362,0.4883,3867.3,3866.3,1.59543866]
[1761916850549,0.4883,3867.3,3867.0,1.81017591]
[1761916850726,0.4772,3867.2,3867.0,1.81017591]
[1761916850932,0.4772,3867.2,3866.7,1.8103053]
[1761916850933,0.2574,3867.1,3866.9,1.8102329]
[1761916851139,0.2574,3867.1,3867.0,1.8360486]
[1761916851340,0.4772,3867.6,3867.1,1.81014196]
[1761916851547,0.4772,3867.6,3867.2,0.0258585]
[1761916852357,0.4883,3867.3,3867.2,0.0258585]
[1761916852731,0.9655,3867.3,3867.2,0.0258585]
[1761916852926,0.9655,3867.3,3867.1,1.83599897]
[1761916853145,0.4772,3867.2,3867.1,1.83599897]
[1761916853324,0.9655,3867.2,3867.1,0.02585917]
[1761916853526,0.4883,3867.2,3866.5,0.02586318]
[1761916853723,0.4883,3867.2,3867.1,1.81014196]
[1761916853927,0.4883,3867.2,3867.0,1.81018627]
[1761916854160,0.4883,3867.2,3866.7,1.81032922]
[1761916854360,0.4883,3866.6,3866.5,1.81042286]
[1761916855741,0.9655,3866.6,3866.5,1.81042286]
[1761916856141,0.9655,3866.6,3866.4,1.81046474]
[1761916856330,0.4772,3866.5,3866.4,1.81046474]
[1761916856665,0.4883,3866.5,3866.4,1.81046474]
[1761916856959,0.9655,3866.5,3866.4,1.81046474]
[1761916857671,0.4772,3867.3,3866.5,1.39968]
[1761916857866,0.4772,3867.3,3866.7,1.81030273]
[1761916858028,0.4772,3867.2,3866.8,0.02586117]
[1761916858230,0.4772,3867.2,3866.9,1.81023125]
[1761916858433,0.4772,3867.2,3867.0,1.81018192]
[1761916858644,0.4772,3867.2,3867.1,1.81014196]
[1761916858843,0.41070401,3867.7,3867.1,1.81014196]
[1761916859047,0.41070401,3867.7,3867.2,1.83595365]
[1761916859048,6.35759999,3867.6,3867.2,1.83595365]
[1761916859448,0.4883,3867.3,3867.2,1.83595365]
[1761916861084,0.9655,3867.3,3867.2,0.0258585]
[1761916861386,0.1288,3867.2,3867.0,1.81016176]
[1761916861549,0.1288,3867.1,3867.0,1.81016176]
[1761916861752,0.6147,3867.1,3867.0,1.81016176]
[1761916862893,6.35759999,3867.6,3867.5,1.80995475]
[1761916863397,6.84589999,3867.6,3867.5,1.80995475]
[1761916863795,6.35759999,3867.6,3867.5,1.80995475]
[1761916864003,6.35759999,3867.6,3867.4,0.02585716]
[1761916864492,6.35759999,3867.6,3867.5,2.29795475]
[1761916864984,6.35759999,3867.6,3867.1,0.1114]
[1761916864985,6.84589999,3867.6,3867.1,0.1114]
[1761916865298,7.32309999,3867.6,3867.4,1.80998276]
[1761916865494,6.84589999,3867.6,3866.9,0.1114]
[1761916865791,6.84589999,3867.6,3867.5,1.80995475]
[1761916866093,6.35759999,3867.6,3867.5,1.80995475]
[1761916866668,6.84589999,3867.6,3867.4,1.81000155]
[1761916866862,6.84589999,3867.6,3867.5,1.80995475]
[1761916867768,6.84589999,3867.6,3867.1,1.81010708]
[1761916867978,6.84589999,3867.6,3867.5,1.80995475]
[1761916868690,7.32309999,3867.6,3867.3,1.81001975]
[1761916868867,0.4772,3867.5,3867.3,1.81001975]
[1761916869066,6.35759999,3867.6,3867.4,1.81000155]
[1761916869467,0.4883,3867.5,3866.7,0.1114]
[1761916869715,0.4883,3867.5,3867.4,1.81000155]
[1761916869880,6.35859999,3867.6,3867.5,1.80995475]
[1761916870500,6.35859999,3867.6,3866.4,0.36230203]
[1761916870501,7.32409999,3867.6,3866.4,0.36230203]
[1761916870797,0.2338,3867.3,3867.2,1.81009515]
[1761916870971,0.233,3867.3,3867.2,1.81009515]
[1761916872801,6.35859999,3867.6,3867.5,1.80995475]
[1761916873099,6.84689999,3867.6,3867.5,1.80995475]
[1761916874171,0.1288,3867.5,3866.7,0.1288]
[1761916874504,0.233,3867.3,3867.2,1.81009515]
[1761916875771,6.83579999,3867.6,3867.3,1.8100198]
[1761916876086,0.4883,3867.1,3866.0,1.81064044]
[1761916876270,0.233,3866.8,3866.7,1.81032922]
[1761916876685,0.908,3866.8,3866.1,0.002]
[1761916876884,0.405504,3866.7,3866.1,0.02786585]
[1761916877085,0.882704,3866.7,3866.1,0.02786585]
[1761916877286,0.1978,3866.8,3866.2,0.32382358]
[1761916877581,0.1978,3866.8,3866.5,1.81038648]
[1761916877795,0.677,3866.8,3866.6,0.02586251]
[1761916878108,0.677,3866.8,3866.6,1.8362339]
[1761916878320,0.001,3867.6,3867.1,1.81013081]
[1761916878500,0.4802,3867.6,3867.3,1.81004797]
[1761916879108,0.4802,3867.6,3867.1,1.8359569]
[1761916879109,0.4619,3867.2,3867.1,1.8359569]
[1761916879274,0.4802,3867.6,3867.3,1.81003115]
[1761916879478,0.4802,3867.6,3867.4,0.02585716]
[1761916879680,0.4619,3867.4,3867.1,0.02585917]
[1761916879877,0.1978,3868.1,3866.0,3.32249248]
[1761916879878,4.62364926,3871.4,3867.5,0.4904]
[1761916880114,7.00226482,3874.3,3873.7,0.05]
[1761916880338,5.90709703,3877.3,3875.4,1.80625397]
[1761916880625,30.0,3879.9,3877.2,0.1554]
[1761916880908,30.0,3879.9,3877.4,0.405504]
[1761916880909,28.313066,3879.9,3877.4,0.405504]
[1761916881140,25.172701,3879.9,3878.4,10.8800827]
[1761916881344,25.172701,3879.9,3878.4,1.66721531]
[1761916881476,6.45629512,3881.4,3878.4,1.66721531]
[1761916881477,4.83576394,3881.4,3878.4,2.07271931]
[1761916881673,6.45629512,3881.1,3878.5,1.80479508]
[1761916881889,0.1395,3878.5,3878.4,1.66721531]
[1761916882513,0.1379,3878.5,3878.4,1.66721531]
[1761916882714,0.1379,3878.9,3878.4,1.66721531]
[1761916883213,0.4152,3878.9,3878.1,0.005]
[1761916883517,0.4152,3878.9,3878.2,0.02578515]
[1761916883721,26.344811,3878.7,3877.1,9.93440823]
[1761916883924,22.743431,3878.7,3877.1,9.93440823]
[1761916884090,2.08216798,3878.4,3878.2,14.4787737]
[1761916884277,22.53825899,3878.3,3878.2,1.6059025]
[1761916884477,2.2105116,3878.1,3878.0,7.22149768]
[1761916884683,32.23630207,3878.1,3878.0,7.22149768]
[1761916884988,32.2105116,3878.1,3878.0,6.84949768]
[1761916885378,1.80542659,3877.2,3877.1,0.005]
[1761916885582,32.21102373,3877.0,3876.9,6.02066323]
[1761916885820,32.21102373,3877.0,3876.6,5.85679898]
[1761916885821,32.72040912,3876.7,3876.6,5.85679898]
[1761916886212,32.72040912,3876.7,3875.9,23.52567633]
[1761916886213,0.405504,3876.2,3875.9,23.52567633]
[1761916886393,0.405504,3876.2,3875.9,12.6934298]
[1761916886394,11.55882547,3876.2,3875.9,12.6934298]
[1761916886730,10.10525462,3876.2,3875.9,12.6934298]
[1761916886885,9.45899162,3876.2,3875.9,12.6934298]
[1761916887381,20.73649162,3876.2,3875.9,12.6934298]
[1761916887691,16.79454562,3876.2,3875.9,12.6934298]
[1761916887894,16.79454562,3876.2,3876.1,0.005]
[1761916888303,9.36949862,3876.2,3876.1,0.005]
[1761916888506,10.36949862,3876.2,3876.1,0.005]
[1761916888731,4.37449062,3876.2,3876.1,0.005]
[1761916889101,4.40028109,3876.2,3876.1,0.005]
[1761916889497,10.74595409,3876.2,3876.1,0.005]
[1761916889698,8.38911662,3876.2,3876.1,0.005]
[1761916889898,6.68811662,3876.2,3876.1,0.005]
[1761916890130,0.50924567,3876.7,3876.1,0.005]
[1761916890431,21.090694,3876.6,3876.1,0.005]
[1761916890628,0.02579047,3876.5,3876.1,0.005]
[1761916891048,12.045287,3876.4,3876.1,0.005]
[1761916891348,0.02579047,3876.3,3876.1,0.005]
[1761916891534,8.822092,3876.4,3876.1,0.005]
[1761916891729,0.02579047,3876.3,3876.1,0.005]
[1761916891934,4.741211,3876.4,3876.1,0.005]
[1761916892134,0.02579047,3876.3,3876.1,0.005]
[1761916892334,4.322784,3876.4,3876.1,0.005]
[1761916892642,10.334275,3876.2,3876.1,0.005]
[1761916892813,0.405504,3876.2,3876.1,0.005]
[1761916893016,11.091487,3876.2,3876.1,0.005]
[1761916893217,23.907054,3876.2,3876.1,0.005]
[1761916893434,17.963792,3876.2,3876.1,0.005]
[1761916893714,9.054917,3876.2,3876.1,0.005]
[1761916894244,12.888919,3876.2,3876.1,0.005]
[1761916894590,14.288599,3876.2,3875.1,0.005]
[1761916894749,2.21232863,3874.2,3874.1,0.005]
[1761916895045,2.21232863,3874.2,3873.1,0.005]
[1761916895046,6.558133,3873.3,3873.1,0.005]
[1761916895345,6.10897947,3873.2,3873.1,0.005]
[1761916895647,6.556289,3873.2,3873.1,0.005]
[1761916896352,8.356904,3873.2,3873.1,0.005]
[1761916896941,6.758304,3873.2,3873.1,0.005]
[1761916897154,0.12972505,3875.4,3873.1,0.005]
[1761916897459,2.545435,3873.3,3873.1,0.005]
[1761916897615,0.02579047,3873.2,3873.1,0.005]
[1761916898422,9.39839347,3873.2,3873.1,0.005]
[1761916898765,10.772283,3873.2,3873.1,0.005]
[1761916898969,11.177787,3873.2,3873.1,0.005]
[1761916899177,8.324745,3873.2,3873.1,0.005]
[1761916899355,3.947785,3873.2,3873.1,0.005]
[1761916899666,4.02324947,3873.2,3873.1,0.005]
[1761916899870,0.02579047,3873.3,3873.1,0.005]
[1761916900225,2.412288,3874.2,3873.1,0.005]
[1761916900460,9.469728,3873.7,3873.1,0.005]
[1761916900666,10.378937,3873.5,3873.1,0.005]
[1761916900872,0.4731,3873.8,3873.1,0.005]
[1761916900873,0.43129447,3873.4,3873.1,0.005]
[1761916901072,2.23849856,3873.4,3873.1,0.005]
[1761916901283,0.02579047,3873.4,3873.1,0.005]
[1761916901489,0.405504,3873.3,3873.1,0.005]
[1761916901634,0.02579047,3873.2,3873.1,0.005]
[1761916901982,4.79989147,3873.2,3873.1,0.005]
[1761916902482,0.43129447,3873.2,3873.1,0.005]
[1761916903455,2.50414847,3873.2,3873.1,0.005]
[1761916904348,0.43129447,3873.2,3873.1,0.005]
[1761916904869,0.49889047,3873.2,3873.1,0.005]
[1761916905185,0.02579047,3873.6,3873.1,0.005]
[1761916905674,0.4731,3873.5,3873.2,0.6697]
[1761916905975,0.02579047,3873.4,3873.2,0.1966]
[1761916906172,0.02579047,3873.7,3873.2,0.1966]
[1761916906371,0.02579047,3873.7,3873.2,0.6697]
[1761916906779,0.02579047,3873.7,3873.3,0.4731]
[1761916907380,0.02579047,3873.7,3873.2,0.1966]
[1761916907381,0.1288,3873.3,3873.2,0.1966]
[1761916907677,0.1288,3873.3,3873.2,0.6697]
[1761916907866,0.1288,3873.3,3873.2,1.1601]
[1761916908982,0.77623579,3874.0,3873.2,1.18591844]
[1761916909146,0.005,3875.7,3873.9,0.4904]
[1761916909147,2.055452,3874.8,3873.9,0.4904]
[1761916909350,0.77613739,3874.5,3873.9,0.4904]
[1761916909621,0.02579047,3874.4,3873.9,0.4904]
[1761916910381,0.02579047,3874.4,3873.9,0.9605]
[1761916910586,0.02579047,3874.4,3874.3,0.1827]
[1761916910877,0.02579047,3874.8,3874.3,0.1827]
[1761916911091,0.77610527,3874.7,3874.3,0.1827]
[1761916911377,0.02579047,3874.7,3874.3,0.1827]
[1761916911581,0.4701,3875.1,3874.3,0.6528]
[1761916911779,0.02579047,3875.0,3874.3,0.6528]
[1761916911979,1.80658923,3874.8,3873.8,0.4701]
[1761916912194,0.405504,3874.5,3873.2,0.6667]
[1761916912345,2.21229184,3874.3,3873.2,0.6667]
[1761916912545,0.02579047,3874.2,3873.2,0.6667]
[1761916913250,0.02579047,3874.2,3873.3,0.49591777]
[1761916913478,3.235044,3874.4,3873.3,0.4701]
[1761916913682,0.02579047,3874.3,3873.3,2.27729997]
[1761916913896,3.02408,3874.3,3873.3,2.27729997]
[1761916914118,0.02579047,3874.2,3873.4,0.4701]
[1761916914284,0.405504,3874.8,3873.5,1.8071399]
[1761916914477,0.405504,3874.6,3873.4,2.27728517]
[1761916914675,0.02579047,3874.5,3873.5,0.02581644]
[1761916915005,0.02579047,3875.0,3874.4,0.1827]
[1761916915177,1.39968,3874.8,3874.4,0.1827]
[1761916915377,0.02579047,3874.7,3873.9,0.4701]